bitfinex/quotes_ETHUSD_20250406
["timestamp","ask_amount","ask_price","bid_price","bid_amount"]
[1743964678906,4.28215,1634.7,1633.9,1.5025]
[1743964679207,4.45208707,1634.6,1634.0,10.89]
[1743964679405,0.16966707,1634.6,1634.0,10.89]
[1743964679611,0.16966707,1634.6,1634.1,0.06118602]
[1743964679807,4.28276,1634.5,1634.2,10.89]
[1743964680010,0.16966707,1634.6,1634.2,10.89]
[1743964680211,0.1692279,1634.4,1634.2,10.89]
[1743964680546,0.16920171,1634.3,1633.9,10.889]
[1743964680851,1.5859,1634.2,1632.9,44.055]
[1743964681142,4.28496,1633.7,1633.0,12.3905]
[1743964681327,4.28496,1633.7,1633.1,10.888]
[1743964681533,0.16754367,1633.6,1633.1,10.888]
[1743964681733,4.28397,1634.0,1633.1,12.12705]
[1743964681931,0.16725996,1633.9,1633.1,12.12705]
[1743964682138,4.28401,1634.0,1633.1,12.12705]
[1743964682316,4.28393,1634.1,1633.1,16.41334]
[1743964682317,0.1676172,1633.9,1633.1,16.41334]
[1743964682515,4.28392,1634.1,1633.2,1.641334]
[1743964682741,3.0,1634.1,1633.1,10.888]
[1743964682944,4.28539,1633.5,1633.1,10.886]
[1743964683110,4.45081044,1633.4,1633.1,10.886]
[1743964683313,4.45081044,1633.4,1632.3,44.054]
[1743964683314,0.16503044,1633.4,1632.6,1.5018]
[1743964683514,4.28662,1633.0,1632.7,10.886]
[1743964683744,0.16458977,1632.9,1632.7,10.886]
[1743964683943,0.16458977,1632.9,1631.8,1.5018]
[1743964683944,4.28767,1632.6,1631.8,1.5018]
[1743964684249,6.05873977,1632.9,1632.0,10.887]
[1743964684442,4.28697,1632.9,1632.1,2.65176279]
[1743964684642,0.16068286,1632.8,1632.1,2.5905]
[1743964684843,4.28782,1632.6,1632.0,10.887]
[1743964685056,4.28802,1632.5,1632.0,10.887]
[1743964685256,4.44608009,1632.5,1632.0,10.887]
[1743964685631,4.28816,1632.4,1632.0,10.887]
[1743964685865,0.44462201,1632.4,1632.0,10.887]
[1743964686067,4.28885,1632.2,1632.0,10.887]
[1743964686233,4.28885,1632.2,1631.4,0.55]
[1743964686234,4.28932,1632.0,1631.4,0.55]
[1743964686434,0.15530768,1632.1,1631.5,10.94528878]
[1743964686633,0.1549896,1631.9,1631.6,1.5018]
[1743964686837,4.28897,1632.1,1631.5,10.884]
[1743964687041,4.28841,1632.4,1631.6,10.888]
[1743964687366,0.15498428,1632.3,1631.7,10.887]
[1743964687767,5.89504,1632.5,1631.7,10.887]
[1743964688067,5.89504,1632.5,1631.8,1.5018]
[1743964688068,1.6071,1632.5,1631.8,1.5018]
[1743964688266,57.34661,1633.0,1631.7,10.887]
[1743964688267,0.15494279,1632.4,1631.9,1.56306572]
[1743964688552,4.28626,1633.2,1632.4,1.5018]
[1743964688756,1.6071,1633.4,1632.5,10.886]
[1743964688757,0.12613633,1633.1,1632.5,10.886]
[1743964688953,4.28618,1633.2,1632.4,1.5018]
[1743964689278,4.28827,1632.4,1632.1,10.885]
[1743964689453,4.28786,1632.6,1632.1,10.885]
[1743964689620,0.12633005,1632.3,1632.1,10.885]
[1743964689825,0.12633005,1632.3,1631.8,10.886]
[1743964690037,4.28861,1632.3,1631.6,1.5018]
[1743964690255,4.717471,1632.3,1631.9,10.886]
[1743964690552,4.41412889,1632.2,1631.9,10.886]
[1743964690751,0.12526889,1632.2,1631.7,0.06127844]
[1743964690952,1.6071,1632.2,1631.6,1.5018]
[1743964691153,0.12580907,1632.1,1631.7,10.94628043]
[1743964691358,4.2883,1632.4,1631.7,10.94628043]
[1743964691653,0.12629417,1632.3,1631.7,12.19108847]
[1743964691953,5.89512,1632.5,1631.7,10.885]
[1743964692250,0.1264696,1632.4,1631.8,10.884]
[1743964692452,0.1264696,1632.4,1631.9,0.0612717]
[1743964692654,0.1264696,1632.4,1631.9,4.3505617]
[1743964692873,0.1264696,1632.4,1632.1,1.5025]
[1743964693092,4.28604,1633.3,1632.3,4.28832]
[1743964693234,5.93023,1633.5,1632.4,10.885]
[1743964693436,0.116283,1633.2,1632.6,1.5025]
[1743964693660,4.28761,1632.7,1632.4,10.885]
[1743964693860,4.28711,1632.8,1632.4,10.885]
[1743964694170,0.11768488,1632.7,1632.4,10.885]
[1743964694467,1.6447,1632.9,1632.4,10.885]
[1743964694655,0.11700317,1632.6,1632.4,10.885]
[1743964694843,4.28724,1632.8,1632.5,10.883]
[1743964695045,2.237858,1632.9,1632.5,10.883]
[1743964695243,6.524868,1632.9,1632.5,10.883]
[1743964695439,4.28721,1632.8,1632.5,10.883]
[1743964695696,4.28606,1633.2,1632.5,10.883]
[1743964695990,4.28601,1633.3,1632.5,12.3855]
[1743964696439,4.28574,1633.4,1632.5,12.3855]
[1743964696638,5.523084,1633.4,1632.5,12.3855]
[1743964696873,4.2863,1633.2,1632.5,12.3855]
[1743964697171,4.28584,1633.3,1632.6,0.06125136]
[1743964697359,1.237344,1633.4,1632.6,0.06125136]
[1743964697582,10.21563,1633.5,1632.6,0.06125136]
[1743964697887,10.21563,1633.5,1632.7,10.881]
[1743964697888,4.28599,1633.3,1632.7,10.881]
[1743964698083,4.28608,1633.2,1632.7,10.881]
[1743964698393,8.57238,1633.2,1632.8,10.881]
[1743964698544,5.9302,1633.5,1632.8,10.881]
[1743964698545,4.28581,1633.3,1632.8,10.881]
[1743964698883,5.142937,1633.3,1632.8,10.881]
[1743964699191,4.28555,1633.4,1632.8,10.881]
[1743964699394,5.93,1633.5,1632.8,10.881]
[1743964699884,1.5131,1634.1,1632.9,1.56373115]
[1743964700050,1.2631,1634.1,1633.1,8.17146091]
[1743964700254,0.31860979,1634.7,1633.7,4.28474]
[1743964700576,4.283,1634.4,1633.8,12.55809639]
[1743964700776,4.28424,1633.9,1633.5,1.6179]
[1743964700965,4.28475,1633.7,1633.5,1.6179]
[1743964701170,4.28533,1633.5,1633.2,10.878]
[1743964701366,4.28548,1633.5,1633.0,10.878]
[1743964701809,0.978424,1633.8,1632.9,1.6179]
[1743964702090,0.55,1633.7,1632.9,12.4929]
[1743964702289,8.57019,1633.6,1632.9,12.4929]
[1743964702503,4.28452,1633.8,1632.9,12.4929]
[1743964702788,4.28531,1633.5,1632.9,12.4929]
[1743964702947,4.28485,1633.7,1633.0,0.06123037]
[1743964703147,1.308268,1633.7,1633.0,0.06123037]
[1743964703371,4.28503,1633.6,1633.0,0.061224]
[1743964703572,4.28503,1633.6,1632.9,12.4929]
[1743964703754,4.28477,1633.7,1633.0,0.06122626]
[1743964703950,4.28502,1633.6,1633.0,0.06122626]
[1743964704152,4.28594,1633.3,1632.9,1.6179]
[1743964704357,0.428502,1633.5,1632.9,1.6179]
[1743964704559,4.28555,1633.4,1632.9,1.6179]
[1743964704793,6.26388587,1633.8,1633.0,0.06123884]
[1743964704970,1.5131,1633.8,1633.0,0.06123884]
[1743964705167,4.28398,1634.0,1633.0,4.34777221]
[1743964705368,1.5131,1634.4,1633.4,8.17146091]
[1743964705666,1.5131,1634.8,1633.6,1.6179]
[1743964705981,4.28406,1634.0,1633.6,1.6179]
[1743964706178,4.28346,1634.2,1633.6,1.6179]
[1743964706380,0.55,1634.5,1633.6,1.67910743]
[1743964706559,4.28428,1633.9,1633.6,1.6179]
[1743964706760,4.28501,1633.6,1633.3,1.6179]
[1743964706960,4.28452,1633.8,1633.4,10.87]
[1743964707292,4.28491,1633.7,1633.4,10.87]
[1743964707490,5.16973972,1633.9,1633.4,10.87]
[1743964707694,4.28485,1633.7,1633.4,10.87]
[1743964708188,4.28478,1633.7,1633.4,10.87]
[1743964708391,6.12127,1633.7,1633.1,0.06122124]
[1743964708593,6.12145,1633.6,1632.9,10.867]
[1743964708758,3.55,1633.5,1632.7,1.6179]
[1743964708961,3.55,1633.5,1632.4,12.4849]
[1743964708962,6.1247,1632.8,1632.4,12.4849]
[1743964709171,6.12332,1633.1,1632.4,10.867]
[1743964709379,6.12557,1632.5,1632.4,10.867]
[1743964709581,6.1253,1632.6,1632.1,1.6179]
[1743964709864,0.55,1632.5,1632.0,10.866]
[1743964710175,6.12632,1632.3,1632.0,10.866]
[1743964710379,6.12594,1632.4,1631.7,1.6179]
[1743964710695,6.12688,1632.2,1631.7,12.4829]
[1743964710888,6.57719968,1632.2,1631.7,12.4829]
[1743964711288,6.12654,1632.3,1631.7,12.4829]
[1743964711484,6.12511,1632.7,1631.8,0.06127703]
[1743964711672,6.12522,1632.6,1631.7,13.73119]
[1743964711874,6.12443,1632.9,1631.9,6.12776]
[1743964712078,6.12437,1632.9,1632.0,1.6179]
[1743964712299,6.12282,1633.3,1632.2,6.12663]
[1743964712300,6.12301,1633.2,1632.2,6.12663]
[1743964712496,6.12277,1633.3,1632.3,10.866]
[1743964712497,6.12357,1633.1,1632.3,10.866]
[1743964712797,0.35806252,1633.1,1632.1,1.6179]
[1743964713113,6.12447,1632.8,1632.2,10.865]
[1743964713264,6.12332,1633.1,1632.2,10.865]
[1743964713471,0.36613756,1632.7,1632.2,10.865]
[1743964713802,0.95829298,1633.1,1632.2,10.865]
[1743964713974,0.38621278,1633.0,1632.2,10.865]
[1743964714299,6.12395,1633.0,1632.2,10.865]
[1743964714487,0.40448385,1632.9,1632.2,10.865]
[1743964714687,0.40448385,1632.9,1632.3,0.06125045]
[1743964715203,0.42384086,1632.9,1632.3,0.06125045]
[1743964715502,6.12425,1632.9,1632.2,10.865]
[1743964715699,0.13350688,1632.8,1632.3,0.06125305]
[1743964715880,0.44269179,1632.8,1632.3,0.06125305]
[1743964716417,1.5131,1633.4,1632.4,7.76006]
[1743964716577,0.14390732,1632.7,1632.6,6.12505]
[1743964716773,1.5989,1633.7,1632.7,6.12458]
[1743964716774,7.71997,1633.7,1632.7,6.12458]
[1743964716981,0.14518646,1633.6,1632.9,1.6343]
[1743964717280,0.14518646,1633.6,1633.0,6.12354]
[1743964717480,6.26683646,1633.6,1633.1,10.861]
[1743964717677,0.47033492,1633.8,1632.9,12.4953]
[1743964717920,6.12296,1633.2,1632.9,10.861]
[1743964718121,6.1236,1633.1,1632.9,10.861]
[1743964718423,0.14495806,1633.1,1632.9,10.861]
[1743964718778,1.116686,1633.8,1633.0,1.5389]
[1743964718979,0.14586132,1633.7,1633.1,10.859]
[1743964719227,0.14586132,1633.7,1633.1,12.09879]
[1743964719464,0.14586132,1633.7,1633.1,10.859]
[1743964719611,6.12257,1633.3,1633.0,1.5389]
[1743964719919,7.65998,1634.0,1632.8,10.857]
[1743964720118,0.14507663,1633.2,1632.9,1.0857]
[1743964720321,6.12217,1633.5,1633.0,1.5389]
[1743964720620,9.886338,1633.9,1633.0,1.5389]
[1743964720784,0.14536462,1633.4,1633.0,1.5389]
[1743964720983,6.67107,1633.7,1633.0,1.5389]
[1743964721222,6.12356,1633.1,1632.8,10.857]
[1743964721530,7.66154,1633.5,1632.8,10.857]
[1743964721711,0.14661115,1633.0,1632.8,10.857]
[1743964721877,7.20317146,1633.6,1632.8,10.857]
[1743964722085,0.13394896,1632.9,1632.8,18.221]
[1743964722293,6.886538,1633.9,1633.1,1.5389]
[1743964722582,6.25607816,1633.8,1633.2,0.06121915]
[1743964722929,12.37703816,1633.8,1633.3,10.854]
[1743964723138,1.39561105,1633.8,1633.3,10.854]
[1743964723355,0.13519816,1633.8,1633.4,1.5389]
[1743964723648,6.11972,1634.1,1633.4,1.5389]
[1743964723803,7.65842,1634.4,1633.5,0.06120732]
[1743964724003,0.13722221,1634.3,1633.5,0.06120732]
[1743964724256,6.12108,1633.7,1633.4,1.5389]
[1743964724545,6.12334,1633.1,1632.8,1.5389]
[1743964724719,1.5397,1633.3,1632.4,1.5389]
[1743964724921,0.13590112,1633.0,1632.5,10.851]
[1743964725130,6.1234,1633.1,1632.5,10.851]
[1743964725447,0.13474678,1633.0,1632.5,10.851]
[1743964725819,6.1235,1633.1,1632.5,10.851]
[1743964726013,6.12296,1633.2,1632.5,10.851]
[1743964726014,12.24617,1633.2,1632.5,10.851]
[1743964726214,0.13421113,1633.0,1632.5,10.91224514]
[1743964726432,6.12338,1633.1,1632.5,10.91224514]
[1743964726433,6.25779623,1633.1,1632.5,10.91224514]
[1743964726738,0.13415506,1632.9,1632.5,10.851]
[1743964726965,0.13453887,1633.0,1632.4,1.5389]
[1743964727146,6.12502,1632.7,1632.4,1.5389]
[1743964727347,0.13445299,1632.9,1632.4,12.3879]
[1743964727504,0.13301557,1632.6,1632.4,12.3879]
[1743964727700,6.12335,1633.1,1632.4,12.3879]
[1743964727917,7.66155,1633.5,1632.5,6.1254]
[1743964728106,0.12338968,1633.0,1632.7,1.5389]
[1743964728325,6.575199,1633.5,1632.7,1.5389]
[1743964728509,0.1216793,1632.9,1632.7,1.5389]
[1743964728721,6.12272,1633.3,1632.7,1.5389]
[1743964728918,6.12348,1633.1,1632.7,1.5389]
[1743964729136,6.1239,1633.0,1632.4,10.849]
[1743964729307,6.12428,1632.9,1632.4,12.3879]
[1743964729659,0.58101917,1633.0,1632.4,1.5389]
[1743964729660,6.24608442,1632.8,1632.4,1.5389]
[1743964729818,6.12539,1632.6,1632.2,10.846]
[1743964730013,0.12144442,1632.8,1632.3,0.06126126]
[1743964730777,6.12482,1632.8,1632.1,1.5389]
[1743964731067,6.12571,1632.5,1632.2,10.844]
[1743964731368,0.1214479,1632.7,1632.2,10.844]
[1743964731676,6.12234,1633.4,1632.3,10.72643071]
[1743964731826,1.5397,1633.5,1632.5,7.66446]
[1743964732021,0.12223131,1633.3,1632.5,1.5389]
[1743964732362,6.12268,1633.3,1632.5,1.5389]
[1743964732532,0.1220561,1633.2,1632.5,1.5389]
[1743964732733,6.2452061,1633.2,1632.5,1.5389]
[1743964733270,0.1220561,1633.2,1632.5,1.5389]
[1743964733636,6.1236,1633.1,1632.5,1.5389]
[1743964733841,6.12309,1633.2,1632.5,1.5389]
[1743964734039,0.12210793,1633.0,1632.5,1.5389]
[1743964734357,0.12225337,1633.1,1632.6,0.06124677]
[1743964734561,0.12193268,1632.9,1632.7,10.841]
[1743964734760,0.12207814,1633.0,1632.7,10.841]
[1743964734962,0.12181699,1632.8,1632.7,10.841]
[1743964735260,0.1217872,1632.8,1632.7,10.841]
[1743964735647,6.12359,1633.1,1632.7,10.841]
[1743964735852,0.12175741,1632.8,1632.7,10.841]
[1743964736066,6.12359,1633.1,1632.7,10.841]
[1743964736231,0.12172763,1632.8,1632.7,10.841]
[1743964736560,6.1237,1633.0,1632.5,1.5389]
[1743964736759,0.12172763,1632.8,1632.6,10.838]
[1743964736962,6.12257,1633.3,1632.6,10.838]
[1743964736963,0.12187311,1632.9,1632.6,10.838]
[1743964737260,6.12334,1633.1,1632.6,10.838]
[1743964737564,0.12172763,1632.8,1632.7,0.06124882]
[1743964737860,1.5397,1633.5,1632.7,6.1248]
[1743964738065,7.76174,1633.8,1632.8,8.39991]
[1743964738275,6.1216,1633.6,1632.8,2.27548]
[1743964738477,1.6408,1633.8,1632.8,2.27548]
[1743964738478,0.13732618,1633.7,1632.8,2.27548]
[1743964738679,6.12207,1633.5,1632.8,1.663]
[1743964738866,6.12223,1633.4,1632.8,1.663]
[1743964739073,6.12272,1633.3,1632.8,1.663]
[1743964739267,6.12229,1633.4,1632.8,1.663]
[1743964739486,7.346734,1633.4,1632.8,1.663]
[1743964739677,6.12268,1633.3,1632.8,1.663]
[1743964739889,13.469014,1633.4,1632.8,1.663]
[1743964740049,1.224444,1633.4,1632.9,0.0612384]
[1743964740249,6.58695588,1633.7,1632.9,0.0612384]
[1743964740586,0.11448894,1633.6,1632.9,0.0612384]
[1743964740974,6.12232,1633.4,1632.8,1.663]
[1743964741298,6.11947,1634.2,1633.2,6.12262]
[1743964741503,6.11883,1634.3,1633.4,7.78507]
[1743964741784,6.12098,1633.8,1633.4,1.663]
[1743964741952,6.23586367,1633.7,1633.5,10.832]
[1743964742151,6.12044,1633.9,1633.5,10.831]
[1743964742384,6.12065,1633.9,1633.5,10.831]
[1743964742586,6.12083,1633.8,1633.5,10.831]
[1743964742760,6.11958,1634.1,1633.5,10.831]
[1743964742761,6.11963,1634.1,1633.5,10.831]
[1743964742967,6.11933,1634.2,1633.5,10.831]
[1743964743277,6.58934987,1634.3,1633.5,10.831]
[1743964743278,0.47046987,1634.3,1633.6,1.72420465]
[1743964743478,6.12014,1634.0,1633.6,1.663]
[1743964743659,6.11964,1634.1,1633.6,1.663]
[1743964743986,1.22389,1634.1,1633.6,1.663]
[1743964744185,6.11924,1634.2,1633.6,1.663]
[1743964744391,0.31794121,1634.5,1633.8,6.12063]
[1743964744589,6.11676,1634.9,1634.0,7.78289]
[1743964744797,4.96572777,1634.8,1634.1,10.88818171]
[1743964744993,6.11773,1634.6,1634.1,10.827]
[1743964745179,0.49657278,1634.7,1634.0,1.663]
[1743964745492,6.11775,1634.6,1634.1,10.826]
[1743964745693,6.11772,1634.6,1634.1,10.826]
[1743964745869,6.61391278,1634.7,1634.1,10.826]
[1743964746200,0.9538934,1634.8,1634.2,11.90756582]
[1743964746361,0.9538934,1634.8,1634.5,5.72735941]
[1743964746556,0.9538934,1634.8,1634.6,10.825]
[1743964746751,7.0710034,1634.8,1634.3,1.663]
[1743964746958,0.9538934,1634.8,1634.4,10.822]
[1743964747191,0.9538934,1634.8,1634.5,7.45153327]
[1743964747793,0.9538934,1634.8,1634.5,7.39035941]
[1743964749371,0.9538934,1634.8,1634.6,0.06116809]
[1743964749701,6.11734,1634.7,1634.5,10.818]
[1743964749898,6.1177,1634.6,1634.5,10.818]
[1743964750389,6.11734,1634.7,1634.5,10.818]
[1743964750591,6.1177,1634.6,1634.5,10.818]
[1743964750892,6.11819,1634.5,1634.1,10.814]
[1743964751056,6.1175,1634.7,1634.1,10.814]
[1743964751258,0.9538934,1634.8,1634.2,1.72418363]
[1743964751487,7.0708834,1634.8,1634.2,1.663]
[1743964751691,0.9538934,1634.8,1634.3,0.06118363]
[1743964752006,0.31802106,1634.9,1634.6,7.78069]
[1743964752158,0.31802106,1634.9,1634.8,5.72735941]
[1743964752661,0.31802106,1634.9,1634.8,6.18909061]
[1743964752859,1.5527,1636.3,1634.9,1.5971]
[1743964753210,3.0,1636.2,1635.3,1.5971]
[1743964753365,4.5527,1635.4,1634.5,1.5971]
[1743964753560,6.11767,1634.7,1634.1,1.5971]
[1743964753807,6.11718,1634.8,1634.2,10.809]
[1743964753970,6.11733,1634.7,1634.1,1.5971]
[1743964754178,6.11896,1634.3,1634.2,10.808]
[1743964754377,6.12163,1633.6,1633.4,10.808]
[1743964754572,6.12125,1633.7,1633.4,10.808]
[1743964754772,1.5527,1634.0,1633.4,10.808]
[1743964754973,16.808,1634.8,1633.4,12.04851]
[1743964755205,6.12025,1634.0,1633.4,10.808]
[1743964755359,6.11961,1634.1,1633.4,10.808]
[1743964755562,6.11924,1634.2,1633.4,10.808]
[1743964756064,6.11842,1634.5,1633.5,24.64719]
[1743964756377,6.729514,1634.6,1633.6,8.586139]
[1743964756576,6.11808,1634.5,1633.6,8.586139]
[1743964756762,6.11846,1634.4,1633.6,2.464719]
[1743964757434,6.11809,1634.5,1633.6,2.464719]
[1743964757595,6.11807,1634.5,1633.7,1.5793]
[1743964757802,6.11947,1634.2,1633.7,1.5793]
[1743964757987,6.11807,1634.5,1633.7,1.5793]
[1743964758316,6.11772,1634.6,1633.7,13.42755941]
[1743964758513,2.34259741,1634.8,1633.7,13.42755941]
[1743964758514,8.45956741,1634.8,1633.9,7.69946]
[1743964758730,6.91396741,1634.8,1634.0,0.06118223]
[1743964758939,0.79699741,1634.8,1634.0,12.68453586]
[1743964759137,0.79699741,1634.8,1634.1,0.06118169]
[1743964759734,0.79699741,1634.8,1634.2,1.5793]
[1743964760032,0.79699741,1634.8,1633.8,10.804]
[1743964760033,6.11973,1634.1,1633.8,10.804]
[1743964760334,6.11881,1634.4,1633.8,10.804]
[1743964760335,6.12032,1633.9,1633.8,10.804]
[1743964760488,6.12013,1634.0,1633.8,10.804]
[1743964760888,6.12032,1633.9,1633.8,10.804]
[1743964761216,7.66483,1634.2,1633.8,10.804]
[1743964761415,12.23875,1634.2,1633.8,10.804]
[1743964761634,12.23758,1634.4,1633.8,10.804]
[1743964761930,7.66393,1634.5,1633.9,0.06119744]
[1743964762131,7.66393,1634.5,1633.8,12.04233]
[1743964762339,6.91395741,1634.8,1634.0,1.5793]
[1743964762498,13.03119741,1634.8,1634.0,1.5793]
[1743964762694,0.79699741,1634.8,1634.0,7.30665941]
[1743964763016,6.1175,1634.7,1634.1,0.79184428]
[1743964763353,6.1175,1634.7,1634.1,0.73066594]
[1743964763643,6.91412741,1634.8,1634.1,0.73066594]
[1743964763841,0.79699741,1634.8,1634.2,0.06118205]
[1743964764042,0.79699741,1634.8,1634.3,12.3659]
[1743964764337,6.11784,1634.6,1634.3,1.5679]
[1743964764527,6.11827,1634.5,1634.3,10.797]
[1743964764752,6.91412741,1634.8,1634.3,10.797]
[1743964765056,1.48841015,1634.8,1634.3,10.797]
[1743964765261,6.11845,1634.4,1634.3,10.797]
[1743964765424,8.16861,1634.6,1633.5,1.5679]
[1743964765627,6.11889,1634.3,1633.6,10.795]
[1743964765948,6.12047,1633.9,1633.6,10.795]
[1743964766140,6.12072,1633.8,1633.6,10.795]
[1743964766335,6.12047,1633.9,1633.6,10.795]
[1743964766734,6.11882,1634.3,1633.6,10.795]
[1743964766943,6.12035,1633.9,1633.6,10.795]
[1743964767142,6.1204,1633.9,1633.6,10.795]
[1743964767358,6.12019,1634.0,1633.6,10.795]
[1743964767662,6.11959,1634.1,1633.2,7.29525941]
[1743964767663,12.24176,1633.8,1633.2,7.29525941]
[1743964767846,12.24176,1633.8,1633.3,10.792]
[1743964768163,6.12075,1633.8,1633.3,10.792]
[1743964768529,6.12117,1633.7,1633.2,2.29742594]
[1743964768729,6.12117,1633.7,1633.3,10.792]
[1743964768924,6.12151,1633.6,1633.3,10.792]
[1743964769172,6.12257,1633.3,1632.7,1.5679]
[1743964769375,7.62123,1633.9,1632.7,1.5679]
[1743964769376,6.12295,1633.2,1632.8,10.791]
[1743964769686,12.24614,1633.2,1632.8,10.791]
[1743964769889,6.12295,1633.2,1632.8,10.791]
[1743964770094,6.12288,1633.3,1632.8,10.791]
[1743964770291,6.1231,1633.2,1632.8,10.791]
[1743964770462,6.1235,1633.1,1632.8,10.791]
[1743964770663,6.1235,1633.1,1632.7,1.5679]
[1743964770994,6.12335,1633.1,1632.8,10.791]
[1743964771397,1.5009,1633.4,1632.8,10.791]
[1743964771551,12.24727,1633.1,1632.8,10.791]
[1743964771898,6.12403,1633.0,1632.8,10.79]
[1743964772095,12.24691,1633.1,1632.8,10.79]
[1743964772251,7.6231,1633.4,1632.8,10.79]
[1743964772252,6.1239,1633.0,1632.8,10.79]
[1743964772596,6.12512,1632.7,1632.5,12.789]
[1743964772795,6.12512,1632.7,1632.5,2.0]
[1743964772796,6.12519,1632.6,1632.5,2.0]
[1743964773155,6.67519,1632.6,1632.5,2.0]
[1743964773352,6.67519,1632.6,1631.4,6.6936104]
[1743964773353,6.12632,1632.3,1631.5,1.6635]
[1743964773592,6.1272,1632.1,1631.6,10.788]
[1743964773789,6.12671,1632.2,1631.5,1.6635]
[1743964774093,6.12671,1632.2,1631.4,0.55]
[1743964774094,13.45999941,1631.9,1631.4,0.55]
[1743964774298,9.12932,1631.5,1631.4,1e-05]
[1743964774496,7.73392,1631.5,1631.4,1e-05]
[1743964774657,6.12909,1631.6,1631.4,1e-05]
[1743964774993,6.12932,1631.5,1631.4,1e-05]
[1743964775289,6.12874,1631.7,1631.4,1e-05]
[1743964775496,6.12918,1631.6,1631.4,1e-05]
[1743964775793,7.73315,1631.8,1631.0,1.6635]
[1743964775993,7.73315,1631.8,1630.7,1.6635]
[1743964775994,6.13103,1631.1,1630.7,1.6635]
[1743964776297,6.13084,1631.1,1630.4,12.4505]
[1743964776593,6.13045,1631.2,1630.4,12.4505]
[1743964776756,1.6046,1631.5,1630.4,14.93414687]
[1743964776960,6.13216,1630.8,1630.4,12.4545]
[1743964777189,0.4532717,1631.1,1630.4,1.6635]
[1743964777394,6.13231,1630.8,1630.3,6.25217873]
[1743964777881,6.13224,1630.8,1630.2,10.79]
[1743964778590,1.6046,1631.0,1630.2,10.79]
[1743964778792,6.13217,1630.8,1630.2,10.79]
[1743964779004,6.13274,1630.6,1630.2,10.79]
[1743964779372,6.745427,1630.8,1630.2,10.79]
[1743964779763,6.13159,1630.9,1630.2,10.79]
[1743964779964,6.132,1630.8,1630.2,10.79]
[1743964780164,1.6046,1631.0,1630.2,10.79]
[1743964780583,12.26421,1630.8,1630.2,10.79]
[1743964780783,6.13085,1631.1,1630.3,1.5292]
[1743964780974,6.13085,1631.1,1630.3,8.33555941]
[1743964781174,6.13046,1631.2,1630.3,14.46924941]
[1743964781859,6.13046,1631.2,1630.3,20.60287941]
[1743964782059,6.12933,1631.5,1630.6,11.85992941]
[1743964782398,6.12965,1631.5,1630.7,12.3182]
[1743964782561,6.12965,1631.5,1630.7,18.45049]
[1743964782761,6.12956,1631.5,1630.8,1.5292]
[1743964782957,6.12986,1631.4,1630.8,1.5292]
[1743964783199,6.12838,1631.8,1630.9,7.36176481]
[1743964783412,6.59360516,1631.9,1630.9,7.30045941]
[1743964783699,12.25993,1631.4,1630.9,1.5731]
[1743964783869,6.13099,1631.1,1630.9,1.5731]
[1743964784063,6.13099,1631.1,1630.7,10.789]
[1743964784291,6.1304,1631.3,1630.7,10.789]
[1743964784487,6.13058,1631.2,1630.7,10.788]
[1743964784698,12.26127,1631.2,1630.7,10.788]
[1743964784880,6.13058,1631.2,1630.7,9.72944]
[1743964785083,6.13091,1631.1,1630.7,9.72944]
[1743964785488,6.13128,1631.0,1630.6,1.5731]
[1743964785712,6.13197,1630.8,1630.6,12.3591]
[1743964785911,6.13233,1630.7,1630.6,10.786]
[1743964786087,6.13195,1630.8,1630.4,10.787]
[1743964786290,6.13219,1630.8,1630.4,10.787]
[1743964786483,6.13249,1630.7,1630.4,10.787]
[1743964786678,6.1309,1631.1,1630.4,10.787]
[1743964786876,6.13257,1630.7,1630.4,10.787]
[1743964787076,6.13285,1630.6,1630.4,10.787]
[1743964787482,6.13237,1630.7,1630.0,1.629551]
[1743964787483,6.13233,1630.7,1630.0,1.629551]
[1743964787683,6.13459,1630.1,1630.0,0.056451]
[1743964788116,6.68459,1630.1,1630.0,0.056451]
[1743964788321,6.13824,1629.2,1628.9,1.5731]
[1743964788500,6.13799,1629.2,1628.9,1.5731]
[1743964788704,6.13927,1628.9,1628.4,1.5731]
[1743964788917,6.13916,1628.9,1628.4,1.5731]
[1743964789121,0.61309,1628.9,1628.2,12.3561]
[1743964789327,6.75238,1628.9,1628.2,12.3561]
[1743964789625,6.13927,1628.9,1628.2,12.3561]
[1743964789834,0.46570011,1629.2,1628.2,12.3561]
[1743964790005,6.13802,1629.2,1628.3,6.14132]
[1743964790201,8.15165047,1629.3,1628.4,6.20229336]
[1743964790434,7.6906,1629.3,1628.4,6.20229336]
[1743964790636,6.13654,1629.6,1628.7,6.13967]
[1743964790795,7.28035941,1630.2,1629.0,6.13851]
[1743964790992,6.13508,1630.0,1629.1,11.86564941]
[1743964791324,0.45115274,1630.0,1628.9,1.5731]
[1743964791638,6.13764,1629.3,1629.0,10.782]
[1743964792139,6.13665,1629.6,1629.0,10.782]
[1743964792343,6.13839,1629.1,1628.6,1.5731]
[1743964792639,6.13783,1629.3,1628.7,10.784]
[1743964792843,6.13948,1628.8,1628.7,10.784]
[1743964793041,6.13926,1628.9,1628.7,10.784]
[1743964793248,6.13873,1629.0,1628.3,1.5572]
[1743964793454,6.13873,1629.0,1627.6,44.158]
[1743964793455,1.6592,1628.3,1627.4,1.43e-06]
[1743964793737,6.14603,1627.1,1626.3,1.5572]
[1743964793940,6.20768329,1627.0,1626.3,1.5572]